fUSD/lending_fUSD_20241227
["ID","MTS","AMOUNT","RATE_DAILY","PERIOD"]
[346824696,1735306310716,-3948.35972153,0.00013,2]
[346824697,1735306310728,-1164.90682513,0.00013,2]
[346824698,1735306310739,-616.40024748,0.00013,2]
[346824699,1735306310758,-22322.03929,0.00013,2]
[346824700,1735306310770,-4146.21838888,0.00013,2]
[346824701,1735306310782,-3932.74721704,0.00013,2]
[346824702,1735306310794,-2033.70692799,0.00013,2]
[346824703,1735306310805,-833.87987711,0.00013,2]
[346824704,1735306310849,-2417.74338737,0.00013,2]
[346824705,1735306310865,-6340.14444778,0.00013,2]
[346824706,1735306311546,-500.0,0.00010874,2]
[346824707,1735306311557,-500.0,0.00010875,2]
[346824708,1735306311567,-500.0,0.00010875,2]
[346824709,1735306311577,-500.0,0.00010876,2]
[346824710,1735306311588,-500.0,0.00010877,2]
[346824711,1735306311598,-765.78,0.00010877,2]
[346824712,1735306311608,-2425.83379999,0.00011092,2]
[346824713,1735306311620,-9324.98997823,0.00011092,2]
[346824714,1735306311630,-211.38,0.00011149,2]
[346824715,1735306311639,-500.0,0.00011151,2]
[346824716,1735306311649,-765.78,0.00011151,2]
[346824717,1735306311658,-500.0,0.00011425,2]
[346824718,1735306311667,-500.0,0.00011699,2]
[346824719,1735306311677,-500.0,0.00011973,2]
[346824720,1735306311686,-500.0,0.00012247,2]
[346824721,1735306311697,-500.0,0.00012521,2]
[346824722,1735306311707,-4568.36,0.00012522,2]
[346824723,1735306311717,-500.0,0.00012795,2]
[346824724,1735306311727,-4568.36,0.00012796,2]
[346824725,1735306311737,-227636.60456075,0.00013,2]
[346824726,1735306311750,-4912.64398277,0.00013,2]
[346824727,1735306311761,-777.741585,0.00013,2]
[346824728,1735306311773,-3759.5482,0.00013,2]
[346824729,1735306311784,-5768.43816734,0.00013,2]
[346824730,1735306311796,-251639.09518473,0.00013,2]
[346824731,1735306311808,-1009.0940635,0.00013,2]
[346824732,1735306311819,-30451.53233222,0.00013,2]
[346824733,1735306311831,-25570.70545284,0.00013,2]
[346824734,1735306311843,-116997.45021944,0.00013,2]
[346824735,1735306311855,-5784.59860412,0.00013,2]
[346824736,1735306311866,-918.0,0.00013,2]
[346824737,1735306311882,-6576.06436248,0.00013,2]
[346824738,1735306311894,-221609.35173831,0.00013,2]
[346824739,1735306311931,-5872.16,0.00010877,2]
[346824740,1735306311940,-500.0,0.00011148,2]
[346824741,1735306311950,-36781.62343159,0.00013,2]
[346824742,1735306311961,-418.18435819,0.00013,2]
[346824743,1735306311972,-390.21998,0.00013,2]
[346824744,1735306311992,-500.0,0.00010874,2]
[346824745,1735306312002,-1009.66135946,0.00013,2]
[346824746,1735306312014,-42217.3649194,0.00013,2]
[346824747,1735306312033,-51838.00368482,0.00013,2]
[346824748,1735306312044,-1044.037509,0.00013,2]
[346824754,1735306826718,631.3,8.299e-05,2]
[346824758,1735307093226,150.0,0.0002,120]
[346824759,1735307192121,-219.06028857,9.747e-05,2]
[346824788,1735307432301,-30.93971143,9.747e-05,2]
[346824789,1735307432311,-157.96,0.00010137,2]
[346824790,1735307432322,-101.93028857,0.00010139,2]
[346824791,1735307432334,-207.73971143,0.00010139,2]
[346824792,1735307432344,-11241.52239452,0.0001018,2]
[346824893,1735307438174,-1548.98760548,0.0001018,2]
[346824894,1735307438184,-441.98019456,0.00010205,2]
[346824895,1735307438230,-276.42980544,0.00010205,2]
[346824896,1735307438240,-1000.0,0.00010334,2]
[346824897,1735307438250,-318.0,0.00010445,2]
[346824898,1735307438260,-631.3,0.00010563,2]
[346824899,1735307438269,-150.0,0.0001074,2]
[346824900,1735307438279,-13229.45380876,0.00010775,2]
[346824901,1735307438298,-1771.28400005,0.00010775,2]
[346824902,1735307438347,-2105.88470245,0.00010775,2]
[346824903,1735307438406,-3799.93045815,0.00010775,2]
[346824971,1735307440297,-548.00952576,0.00010775,2]
[346824972,1735307440309,-3588.648222,0.00010775,2]
[346824973,1735307440356,-12008.77888283,0.00010775,2]
[346824974,1735307440365,-722.9375,0.00010775,2]
[346824975,1735307440375,-5000.0,0.00010775,2]
[346824976,1735307440385,-500.0,0.00010873,2]
[346824977,1735307440394,-356.44797086,0.00010873,2]
[346824978,1735307440404,-500.0,0.00010873,2]
[346824979,1735307440414,-500.0,0.00010873,2]
[346824980,1735307440423,-500.0,0.00010873,2]
[346824981,1735307440433,-500.0,0.00010873,2]
[346824982,1735307440443,-500.0,0.00010873,2]
[346824983,1735307440452,-500.0,0.00010873,2]
[346824984,1735307440462,-500.0,0.00010873,2]
[346824985,1735307440472,-500.0,0.00010873,2]
[346824986,1735307440482,-750.02,0.00010873,2]
[346824987,1735307440492,-648.93,0.00010873,2]
[346824988,1735307440502,-500.0,0.00010873,2]
[346824989,1735307440515,-500.0,0.00010873,2]
[346824990,1735307440527,-500.0,0.00010873,2]
[346824991,1735307440537,-500.0,0.00010873,2]
[346824992,1735307440547,-500.0,0.00010873,2]
[346824993,1735307440557,-295.67487404,0.00010873,2]
[346824994,1735307440567,-500.0,0.00010873,2]
[346824995,1735307440576,-500.0,0.00010873,2]
[346824996,1735307440586,-500.0,0.00010873,2]
[346824997,1735307440596,-500.0,0.00010873,2]
[346824998,1735307440606,-500.0,0.00010873,2]
[346824999,1735307440616,-500.0,0.00010873,2]
[346825000,1735307440625,-500.0,0.00010873,2]
[346825001,1735307440635,-500.0,0.00010873,2]
[346825003,1735307440644,-635.17,0.00010873,2]
[346825005,1735307440655,-500.0,0.00010873,2]
[346825007,1735307440664,-500.0,0.00010873,2]
[346825009,1735307440674,-585.79,0.00010873,2]
[346825011,1735307440683,-500.0,0.00010873,2]
[346825013,1735307440693,-500.0,0.00010873,2]
[346825015,1735307440702,-500.0,0.00010873,2]
[346825017,1735307440711,-500.0,0.00010873,2]
[346825019,1735307440721,-500.0,0.00010873,2]
[346825021,1735307440731,-500.0,0.00010873,2]
[346825023,1735307440740,-500.0,0.00010873,2]
[346825025,1735307440750,-500.0,0.00010873,2]
[346825027,1735307440760,-500.0,0.00010873,2]
[346825030,1735307440770,-2724.62,0.00010873,2]
[346825032,1735307440781,-500.0,0.00010873,2]
[346825034,1735307440790,-637.22,0.00010873,2]
[346825035,1735307440800,-500.0,0.00010873,2]
[346825037,1735307440809,-500.0,0.00010873,2]
[346825039,1735307440819,-500.0,0.00010873,2]
[346825041,1735307440829,-500.0,0.00010873,2]
[346825043,1735307440838,-581.79,0.00010873,2]
[346825045,1735307440848,-500.78837733,0.00010873,2]
[346825047,1735307440858,-792.74,0.00010873,2]
[346825049,1735307440867,-500.0,0.00010873,2]
[346825051,1735307440876,-500.0,0.00010873,2]
[346825054,1735307440886,-500.0,0.00010873,2]
[346825055,1735307440896,-863.89,0.00010873,2]
[346825058,1735307440906,-500.0,0.00010873,2]
[346825059,1735307440915,-761.66,0.00010873,2]
[346825061,1735307440925,-500.0,0.00010873,2]
[346825064,1735307440935,-500.0,0.00010873,2]
[346825066,1735307440945,-500.0,0.00010873,2]
[346825068,1735307440955,-500.0,0.00010873,2]
[346825070,1735307440964,-542.95853761,0.00010873,2]
[346825072,1735307440974,-500.0,0.00010873,2]
[346825074,1735307440983,-500.0,0.00010873,2]
[346825075,1735307440992,-500.0,0.00010873,2]
[346825077,1735307441002,-500.0,0.00010873,2]
[346825080,1735307441013,-500.0,0.00010873,2]
[346825081,1735307441024,-1554.36,0.00010873,2]
[346825083,1735307441033,-500.0,0.00010873,2]
[346825085,1735307441042,-500.0,0.00010873,2]
[346825087,1735307441052,-500.0,0.00010873,2]
[346825090,1735307441062,-500.0,0.00010873,2]
[346825092,1735307441071,-500.0,0.00010873,2]
[346825094,1735307441080,-6031.92,0.00010873,2]
[346825095,1735307441089,-500.0,0.00010873,2]
[346825097,1735307441099,-500.0,0.00010873,2]
[346825099,1735307441108,-500.0,0.00010873,2]
[346825102,1735307441118,-2356.6,0.00010873,2]
[346825104,1735307441128,-500.0,0.00010873,2]
[346825106,1735307441138,-500.0,0.00010873,2]
[346825108,1735307441147,-500.0,0.00010873,2]
[346825110,1735307441157,-5559.64,0.00010873,2]
[346825112,1735307441167,-500.0,0.00010873,2]
[346825114,1735307441177,-570.19,0.00010873,2]
[346825116,1735307441187,-1041.4,0.00010873,2]
[346825118,1735307441196,-3645.65,0.00010873,2]
[346825119,1735307441205,-500.0,0.00010873,2]
[346825122,1735307441215,-500.0,0.00010873,2]
[346825123,1735307441225,-500.0,0.00010873,2]
[346825125,1735307441235,-510.73,0.00010873,2]
[346825128,1735307441245,-500.0,0.00010873,2]
[346825130,1735307441255,-500.0,0.00010873,2]
[346825132,1735307441265,-500.0,0.00010873,2]
[346825134,1735307441275,-500.0,0.00010873,2]
[346825135,1735307441284,-500.0,0.00010873,2]
[346825137,1735307441294,-500.0,0.00010873,2]
[346825139,1735307441303,-500.0,0.00010873,2]
[346825141,1735307441313,-500.0,0.00010873,2]
[346825143,1735307441322,-500.0,0.00010873,2]
[346825144,1735307441331,-2466.96,0.00010873,2]
[346825145,1735307441340,-500.0,0.00010873,2]
[346825146,1735307441350,-500.0,0.00010873,2]
[346825147,1735307441359,-500.0,0.00010873,2]
[346825148,1735307441369,-500.0,0.00010873,2]
[346825149,1735307441379,-500.0,0.00010873,2]
[346825150,1735307441388,-500.0,0.00010873,2]
[346825151,1735307441398,-500.0,0.00010873,2]
[346825152,1735307441409,-480.51156989,0.00010873,2]
[346825153,1735307441419,-500.0,0.00010873,2]
[346825154,1735307441431,-500.0,0.00010873,2]
[346825155,1735307441441,-500.0,0.00010873,2]
[346825156,1735307441452,-500.0,0.00010873,2]
[346825157,1735307441461,-500.0,0.00010873,2]
[346825158,1735307441470,-500.0,0.00010873,2]
[346825159,1735307441480,-2288.75,0.00010873,2]
[346825160,1735307441489,-879.99,0.00010873,2]
[346825161,1735307441498,-500.0,0.00010873,2]
[346825162,1735307441510,-500.0,0.00010873,2]
[346825163,1735307441520,-500.0,0.00010873,2]
[346825164,1735307441530,-500.0,0.00010873,2]
[346825165,1735307441539,-500.0,0.00010873,2]
[346825166,1735307441549,-500.0,0.00010873,2]
[346825167,1735307441559,-3593.61,0.00010873,2]
[346825168,1735307441569,-1073.35,0.00010873,2]
[346825169,1735307441578,-500.0,0.00010873,2]
[346825170,1735307441589,-500.0,0.00010873,2]
[346825171,1735307441598,-500.0,0.00010873,2]
[346825172,1735307441607,-500.0,0.00010873,2]
[346825173,1735307441617,-523.21,0.00010873,2]
[346825174,1735307441626,-4681.08,0.00010873,2]
[346825175,1735307441636,-4775.98,0.00010873,2]
[346825176,1735307441646,-3094.95,0.00010873,2]
[346825177,1735307441656,-500.0,0.00010873,2]
[346825178,1735307441665,-317.10210219,0.00010873,2]
[346825179,1735307441674,-500.0,0.00010873,2]
[346825180,1735307441685,-500.0,0.00010873,2]
[346825181,1735307441694,-942.71,0.00010873,2]
[346825182,1735307441703,-500.0,0.00010873,2]
[346825183,1735307441713,-500.0,0.00010873,2]
[346825184,1735307441722,-660.34,0.00010873,2]
[346825185,1735307441731,-500.0,0.00010873,2]
[346825186,1735307441741,-500.0,0.00010873,2]
[346825187,1735307441750,-500.0,0.00010873,2]
[346825188,1735307441760,-500.0,0.00010873,2]
[346825189,1735307441770,-467.18147493,0.00010873,2]
[346825190,1735307441782,-500.0,0.00010873,2]
[346825191,1735307441792,-1909.08,0.00010873,2]
[346825192,1735307441801,-2801.87,0.00010873,2]
[346825193,1735307441810,-535.17401682,0.00010873,2]
[346825194,1735307441820,-500.0,0.00010873,2]
[346825195,1735307441830,-500.0,0.00010873,2]
[346825196,1735307441839,-500.0,0.00010873,2]
[346825197,1735307441848,-500.0,0.00010873,2]
[346825198,1735307441858,-500.0,0.00010873,2]
[346825199,1735307441867,-2937.85,0.00010873,2]
[346825200,1735307441876,-902.03,0.00010873,2]
[346825201,1735307441886,-500.0,0.00010873,2]
[346825202,1735307441896,-500.0,0.00010873,2]
[346825203,1735307441905,-2443.75,0.00010873,2]
[346825204,1735307441914,-500.0,0.00010873,2]
[346825205,1735307441923,-2937.02,0.00010873,2]
[346825206,1735307441932,-3164.0,0.00010873,2]
[346825207,1735307441941,-500.0,0.00010873,2]
[346825208,1735307441951,-500.0,0.00010873,2]
[346825209,1735307441960,-500.0,0.00010873,2]
[346825210,1735307441969,-507.91881254,0.00010873,2]
[346825211,1735307441978,-500.0,0.00010873,2]
[346825212,1735307441988,-1081.08,0.00010873,2]
[346825213,1735307441997,-5077.12,0.00010873,2]
[346825214,1735307442006,-1010.23,0.00010873,2]
[346825215,1735307442016,-500.0,0.00010873,2]
[346825216,1735307442028,-1898.48,0.00010873,2]
[346825217,1735307442038,-3281.07,0.00010873,2]
[346825218,1735307442047,-500.0,0.00010873,2]
[346825219,1735307442057,-158.99120585,0.00010873,2]
[346825220,1735307442067,-500.0,0.00010873,2]
[346825221,1735307442077,-500.0,0.00010873,2]
[346825222,1735307442086,-2062.82,0.00010873,2]
[346825223,1735307442096,-500.0,0.00010873,2]
[346825224,1735307442105,-694.59,0.00010873,2]
[346825225,1735307442115,-500.0,0.00010873,2]
[346825226,1735307442125,-726.82,0.00010873,2]
[346825227,1735307442134,-500.0,0.00010873,2]
[346825228,1735307442144,-2398.58,0.00010873,2]
[346825229,1735307442154,-500.0,0.00010873,2]
[346825230,1735307442163,-512.21694208,0.00010873,2]
[346825231,1735307442173,-1783.19,0.00010873,2]
[346825232,1735307442182,-500.0,0.00010873,2]
[346825233,1735307442191,-500.0,0.00010873,2]
[346825234,1735307442201,-1415.85,0.00010873,2]
[346825235,1735307442210,-500.0,0.00010873,2]
[346825236,1735307442220,-547.02,0.00010873,2]
[346825237,1735307442229,-500.0,0.00010873,2]
[346825238,1735307442239,-500.0,0.00010873,2]
[346825239,1735307442248,-547.9,0.00010873,2]
[346825240,1735307442257,-501.15034495,0.00010873,2]
[346825241,1735307442267,-965.93,0.00010873,2]
[346825242,1735307442278,-825.51,0.00010873,2]
[346825243,1735307442287,-500.0,0.00010873,2]
[346825244,1735307442297,-500.0,0.00010873,2]
[346825245,1735307442306,-500.0,0.00010873,2]
[346825246,1735307442317,-500.0,0.00010873,2]
[346825247,1735307442327,-2463.97,0.00010873,2]
[346825248,1735307442336,-500.0,0.00010873,2]
[346825249,1735307442346,-500.0,0.00010873,2]
[346825250,1735307442356,-2711.08,0.00010873,2]
[346825251,1735307442365,-631.25,0.00010873,2]
[346825252,1735307442374,-15031.72,0.00010873,2]
[346825253,1735307442383,-1598.38,0.00010873,2]
[346825254,1735307442393,-500.0,0.00010873,2]
[346825255,1735307442402,-2308.43,0.00010873,2]
[346825256,1735307442412,-713.37,0.00010873,2]
[346825257,1735307442421,-646.07,0.00010873,2]
[346825258,1735307442431,-500.0,0.00010873,2]
[346825259,1735307442440,-500.0,0.00010873,2]
[346825260,1735307442450,-1520.41,0.00010873,2]
[346825261,1735307442460,-559.62,0.00010873,2]
[346825262,1735307442470,-500.0,0.00010874,2]
[346825263,1735307442480,-500.0,0.00010874,2]
[346825264,1735307442490,-500.0,0.00010874,2]
[346825265,1735307442500,-500.0,0.00010874,2]
[346825266,1735307442512,-389.11271001,0.00010874,2]
[346825267,1735307442524,-1128.78,0.00010874,2]
[346825268,1735307442533,-500.0,0.00010874,2]
[346825269,1735307442543,-500.0,0.00010874,2]
[346825270,1735307442555,-500.0,0.00010874,2]
[346825271,1735307442565,-500.0,0.00010874,2]
[346825272,1735307442574,-500.0,0.00010874,2]
[346825273,1735307442585,-500.0,0.00010874,2]
[346825274,1735307442595,-500.0,0.00010874,2]
[346825275,1735307442605,-500.0,0.00010874,2]
[346825276,1735307442616,-1522.8,0.00010874,2]
[346825277,1735307442626,-764.2,0.00010874,2]
[346825278,1735307442636,-839.6,0.00010874,2]
[346825279,1735307442645,-637.67,0.00010874,2]
[346825280,1735307442655,-500.0,0.00010874,2]
[346825281,1735307442665,-500.0,0.00010874,2]
[346825282,1735307442675,-500.0,0.00010874,2]
[346825283,1735307442685,-500.0,0.00010874,2]
[346825284,1735307442933,-547.57,0.00010874,2]
[346825285,1735307442943,-500.0,0.00010874,2]
[346825286,1735307442953,-500.0,0.00010874,2]
[346825287,1735307442963,-500.0,0.00010874,2]
[346825288,1735307442973,-500.0,0.00010874,2]
[346825289,1735307442983,-500.0,0.00010874,2]
[346825290,1735307442992,-500.0,0.00010874,2]
[346825291,1735307443002,-500.0,0.00010874,2]
[346825292,1735307443012,-898.02,0.00010874,2]
[346825293,1735307443021,-500.0,0.00010874,2]
[346825294,1735307443034,-500.0,0.00010874,2]
[346825295,1735307443044,-500.0,0.00010874,2]
[346825296,1735307443058,-500.0,0.00010874,2]
[346825297,1735307443068,-500.0,0.00010874,2]
[346825299,1735307443078,-500.0,0.00010874,2]
[346825301,1735307443087,-843.94,0.00010874,2]
[346825302,1735307443098,-1152.63,0.00010874,2]
[346825303,1735307443107,-500.0,0.00010874,2]
[346825304,1735307443117,-994.04,0.00010874,2]
[346825305,1735307443127,-1354.8,0.00010874,2]
[346825307,1735307443136,-500.0,0.00010874,2]
[346825308,1735307443145,-500.0,0.00010874,2]
[346825309,1735307443155,-500.0,0.00010874,2]
[346825311,1735307443165,-500.0,0.00010874,2]
[346825314,1735307443175,-1030.21,0.00010874,2]
[346825317,1735307443185,-500.0,0.00010874,2]
[346825319,1735307443195,-500.0,0.00010874,2]
[346825321,1735307443205,-500.0,0.00010874,2]
[346825322,1735307443215,-500.0,0.00010874,2]
[346825323,1735307443225,-500.0,0.00010874,2]
[346825324,1735307443235,-1985.65,0.00010874,2]
[346825325,1735307443245,-500.0,0.00010874,2]
[346825326,1735307443255,-500.0,0.00010874,2]
[346825327,1735307443265,-500.0,0.00010874,2]
[346825328,1735307443279,-500.0,0.00010874,2]
[346825329,1735307443289,-500.0,0.00010874,2]
[346825330,1735307443298,-957.18,0.00010874,2]
[346825331,1735307443308,-1230.21,0.00010874,2]
[346825332,1735307443318,-1121.34,0.00010874,2]
[346825333,1735307443328,-1818.04,0.00010874,2]
[346825334,1735307443338,-1602.36,0.00010874,2]
[346825335,1735307443348,-500.0,0.00010874,2]
[346825336,1735307443357,-871.04,0.00010874,2]
[346825337,1735307443366,-500.0,0.00010874,2]
[346825338,1735307443375,-500.0,0.00010874,2]
[346825339,1735307443385,-500.0,0.00010874,2]
[346825340,1735307443394,-1251.15,0.00010874,2]
[346825341,1735307443404,-608.84,0.00010874,2]
[346825342,1735307443413,-1102.12,0.00010874,2]
[346825343,1735307443423,-500.0,0.00010874,2]
[346825344,1735307443432,-500.0,0.00010874,2]
[346825345,1735307443441,-1323.75,0.00010874,2]
[346825346,1735307443450,-977.82,0.00010874,2]
[346825347,1735307443459,-1412.74,0.00010874,2]
[346825348,1735307443468,-500.0,0.00010874,2]
[346825349,1735307443478,-1004.34,0.00010874,2]
[346825350,1735307443487,-500.0,0.00010874,2]
[346825351,1735307443496,-500.0,0.00010874,2]
[346825352,1735307443508,-500.0,0.00010874,2]
[346825353,1735307443518,-500.0,0.00010874,2]
[346825354,1735307443531,-500.0,0.00010874,2]
[346825355,1735307443540,-2222.48,0.00010874,2]
[346825356,1735307443550,-500.0,0.00010874,2]
[346825357,1735307443561,-500.0,0.00010874,2]
[346825358,1735307443570,-966.17,0.00010874,2]
[346825359,1735307443579,-500.0,0.00010874,2]
[346825361,1735307443590,-830.79,0.00010874,2]
[346825362,1735307443600,-500.0,0.00010874,2]
[346825364,1735307443609,-500.0,0.00010874,2]
[346825366,1735307443618,-500.0,0.00010874,2]
[346825368,1735307443627,-500.0,0.00010874,2]
[346825370,1735307443636,-536.17,0.00010874,2]
[346825372,1735307443645,-500.0,0.00010874,2]
[346825375,1735307443655,-580.11227703,0.00010874,2]
[346825377,1735307443664,-500.0,0.00010874,2]
[346825380,1735307443673,-500.0,0.00010874,2]
[346825383,1735307443682,-1013.36,0.00010874,2]
[346825384,1735307443691,-505.80894687,0.00010874,2]
[346825385,1735307443700,-500.0,0.00010874,2]
[346825386,1735307443709,-500.0,0.00010874,2]
[346825387,1735307443719,-500.0,0.00010874,2]
[346825388,1735307443729,-1265.4,0.00010874,2]
[346825389,1735307443738,-1121.98,0.00010874,2]
[346825390,1735307443748,-998.62,0.00010874,2]
[346825391,1735307443757,-500.0,0.00010874,2]
[346825392,1735307443767,-1160.72,0.00010874,2]
[346825393,1735307443778,-605.69,0.00010874,2]
[346825394,1735307443788,-500.0,0.00010874,2]
[346825395,1735307443797,-263.09714709,0.00010874,2]
[346825396,1735307443806,-500.0,0.00010874,2]
[346825397,1735307443815,-500.0,0.00010874,2]
[346825398,1735307443824,-500.0,0.00010874,2]
[346825399,1735307443833,-500.0,0.00010874,2]
[346825400,1735307443842,-1960.45,0.00010874,2]
[346825401,1735307443854,-500.0,0.00010874,2]
[346825402,1735307443863,-500.0,0.00010874,2]
[346825403,1735307443874,-869.0,0.00010874,2]
[346825404,1735307443884,-1349.45,0.00010874,2]
[346825405,1735307443893,-500.0,0.00010874,2]
[346825406,1735307443902,-500.0,0.00010874,2]
[346825407,1735307443912,-1767.28,0.00010874,2]
[346825408,1735307443923,-500.0,0.00010874,2]
[346825409,1735307443932,-884.48,0.00010874,2]
[346825410,1735307443941,-500.0,0.00010874,2]
[346825411,1735307443952,-1198.13,0.00010874,2]
[346825412,1735307443961,-500.0,0.00010874,2]
[346825413,1735307443971,-500.0,0.00010874,2]
[346825414,1735307443982,-500.0,0.00010874,2]
[346825415,1735307443991,-1171.68,0.00010874,2]
[346825416,1735307444001,-976.38,0.00010874,2]
[346825417,1735307444010,-500.0,0.00010874,2]
[346825418,1735307444019,-500.0,0.00010874,2]
[346825419,1735307444032,-500.0,0.00010874,2]
[346825420,1735307444042,-500.0,0.00010874,2]
[346825421,1735307444051,-152.363359,0.00010874,2]
[346825422,1735307444061,-2246.668913,0.00010874,2]
[346825423,1735307444071,-500.0,0.00010874,2]
[346825424,1735307444080,-153.753901,0.00010874,2]
[346825425,1735307444090,-1294.66,0.00010874,2]
[346825426,1735307444099,-530.53,0.00010874,2]
[346825427,1735307444109,-1753.97,0.00010874,2]
[346825428,1735307444118,-1293.38,0.00010874,2]
[346825429,1735307444128,-500.0,0.00010874,2]
[346825430,1735307444137,-2143.735353,0.00010874,2]
[346825431,1735307444147,-500.0,0.00010874,2]
[346825432,1735307444157,-500.0,0.00010874,2]
[346825433,1735307444167,-978.6,0.00010874,2]
[346825434,1735307444176,-500.0,0.00010874,2]
[346825435,1735307444185,-2030.73778716,0.00010874,2]
[346825436,1735307444206,-636.07221284,0.00010874,2]
[346825437,1735307444215,-500.0,0.00010874,2]
[346825438,1735307444225,-500.0,0.00010874,2]
[346825439,1735307444235,-883.77,0.00010874,2]
[346825440,1735307444245,-500.0,0.00010874,2]
[346825441,1735307444254,-870.61,0.00010874,2]
[346825442,1735307444264,-689.38,0.00010874,2]
[346825443,1735307444276,-1118.84,0.00010874,2]
[346825444,1735307444285,-500.0,0.00010874,2]
[346825445,1735307444295,-500.0,0.00010874,2]
[346825446,1735307444304,-247.34038699,0.00010874,2]
[346825447,1735307444314,-500.0,0.00010874,2]
[346825448,1735307444323,-598.14,0.00010874,2]
[346825449,1735307444333,-500.0,0.00010874,2]
[346825450,1735307444342,-503.15489599,0.00010874,2]
[346825451,1735307444352,-500.0,0.00010874,2]
[346825452,1735307444361,-500.0,0.00010874,2]
[346825453,1735307444371,-556.89,0.00010874,2]
[346825454,1735307444380,-500.0,0.00010874,2]
[346825455,1735307444390,-810.88,0.00010874,2]
[346825456,1735307444400,-500.0,0.00010874,2]
[346825457,1735307444410,-500.0,0.00010874,2]
[346825458,1735307444419,-500.0,0.00010874,2]
[346825459,1735307444429,-500.0,0.00010874,2]
[346825460,1735307444439,-500.0,0.00010874,2]
[346825461,1735307444449,-500.0,0.00010874,2]
[346825462,1735307444459,-500.0,0.00010874,2]
[346825463,1735307444469,-2039.01,0.00010874,2]
[346825464,1735307444478,-500.0,0.00010874,2]
[346825465,1735307444488,-500.0,0.00010874,2]
[346825466,1735307444498,-1117.41,0.00010874,2]
[346825467,1735307444509,-1148.71,0.00010874,2]
[346825468,1735307444519,-360.01958946,0.00010874,2]
[346825469,1735307444529,-1104.72,0.00010874,2]
[346825470,1735307444538,-500.0,0.00010874,2]
[346825471,1735307444548,-1247.08,0.00010874,2]
[346825472,1735307444559,-165.155239,0.00010874,2]
[346825473,1735307444569,-500.0,0.00010874,2]
[346825474,1735307444579,-2591.17,0.00010874,2]
[346825475,1735307444590,-627.62,0.00010874,2]
[346825476,1735307444600,-500.0,0.00010874,2]
[346825477,1735307444610,-155.415705,0.00010874,2]
[346825478,1735307444620,-570.45,0.00010874,2]
[346825479,1735307444629,-500.0,0.00010874,2]
[346825480,1735307444639,-679.76,0.00010874,2]
[346825481,1735307444648,-754.78,0.00010874,2]
[346825482,1735307444658,-1493.12,0.00010874,2]
[346825483,1735307444667,-546.81,0.00010874,2]
[346825484,1735307444677,-500.0,0.00010874,2]
[346825485,1735307444687,-1314.94,0.00010874,2]
[346825486,1735307444697,-500.0,0.00010874,2]
[346825487,1735307444706,-500.0,0.00010874,2]
[346825488,1735307444715,-500.0,0.00010874,2]
[346825489,1735307444725,-500.0,0.00010874,2]
[346825490,1735307444735,-1443.15,0.00010874,2]
[346825491,1735307444744,-1381.59,0.00010874,2]
[346825492,1735307444754,-500.0,0.00010874,2]